Workbook

Sheet Mean_Std dev
B1: RETURNS
B2: Microsoft | C2: Google | G2: Yearly Returns of portfolio
A3: Year 1 | B3: 0.11 | C3: 0.12 | G3: =B3*$C$14+C3*$C$15 -> 0.113
A4: Year 2 | B4: 0.03 | C4: -0.04 | G4: =B4*$C$14+C4*$C$15 -> 0.009
A5: Year 3 | B5: 0.15 | C5: 0.21 | G5: =B5*$C$14+C5*$C$15 -> 0.168
A6: Year 4 | B6: 0.183 | C6: 0.13 | G6: =B6*$C$14+C6*$C$15 -> 0.1671
A7: Year 5 | B7: 0.08 | C7: 0.25 | G7: =B7*$C$14+C7*$C$15 -> 0.131
A8: Mean | B8: =AVERAGE(B3:B7) -> 0.1106 | C8: =AVERAGE(C3:C7) -> 0.134 | G8: =AVERAGE(G3:G7) -> 0.11762
A9: Std. Dev. | B9: =_xlfn.STDEV.S(B3:B7) -> 0.05963891347 | C9: =_xlfn.STDEV.S(C3:C7) -> 0.1114899099 | G9: =_xlfn.STDEV.S(G3:G7) -> 0.06516342532 | H9: Std Dev
A12: PORTFOLIO
A13: Stock | B13: Exp. Returns | C13: Fraction of wealth invested | D13: Std dev of returns | F13: Variance
A14: Microsoft | B14: =AVERAGE(B3:B7) -> 0.1106 | C14: 0.7 | D14: =_xlfn.STDEV.S(B3:B7) -> 0.05963891347 | F14: =D14^2 -> 0.0035568
A15: Google | B15: =AVERAGE(C3:C7) -> 0.134 | C15: =1-C14 -> 0.3 | D15: =_xlfn.STDEV.S(C3:C7) -> 0.1114899099 | F15: =D15^2 -> 0.01243
A18: Returns of portfolio | B18: =B14*C14+B15*C15 -> 0.11762 | C18: =B14*C14+B15*C15
A19: Variance of portfolio | B19: =F14*C14^2+F15*C15^2+2*C14*C15*A25*D14*D15 -> 0.004246272 | C19: =[F14*C14^2+F15*C15^2]+2*C14*C15*A25*D14*D15
A20: Std dev of portfolio | B20: =SQRT(B19) -> 0.06516342532
A22: Covariance
A23: =_xlfn.COVARIANCE.S(B3:B7,C3:C7) -> 0.003297
A24: Correlation | B24: Cov/std X /std Y
A25: =CORREL(B3:B7,C3:C7) -> 0.4958538164 | B25: =A23/B9/C9 -> 0.4958538164

Sheet Normal Distribution
A1: Normal Distribution
A2: MICROSOFT
A3: Mean Returns, mu | B3: =B54 -> 0.1128064305
A4: Yearly Std dev. or sigma | B4: =B55 -> 0.05765998589 | I4: The returns will lie between mu - 1*sigma and mu +1*sigma for 68%
I5: The returns will lie between mu - 2*sigma and mu +2*sigma for 95%
A6: Assuming that the returns of Microsoft are normally distributed:
A8: This means: There is a 68.2% probability that the returns will lie between -1 std and +1 std dev
B9: Therefore, there is a 68.2% prob that the returns will lie between 11%-6% and 11%+6% (5% and 17%)
B10: Therefore, there is a 95% prob that the returns will lie between 11%-2*6% and 11%+2*6% (-1% and 23%)
A13: If Microsoft is trading at $100 at the start of the year, then at the end of year 1:
A14: It is expected that there is a 68.2% chance that Microsoft will be trading between: $105 and $117
A15: It is expected that there is a 95% chance that Microsoft will be trading between: $99 and $123
A18: Microsoft
A19: Year | B19: Return | D19: Range | E19: Frequency
A20: 1 | B20: 0.1607118353 | D20: -0.1 | E20: =FREQUENCY(B20:B53,D20:D28) -> 0
A21: =A20+1 -> 2 | B21: 0.1262924636 | D21: =D20+5% -> -0.05 | E21: 0
A22: =A21+1 -> 3 | B22: 0.1540527443 | D22: =D21+5% -> 0 | E22: 1
A23: 4 | B23: 0.1349337267 | D23: 0.05 | E23: 3
A24: 5 | B24: 0.07009228673 | D24: 0.1 | E24: 10
A25: 6 | B25: 0.150859101 | D25: 0.15 | E25: 11
A26: 7 | B26: 0.08444337715 | D26: 0.2 | E26: 7
A27: 8 | B27: 0.1717784925 | D27: 0.25 | E27: 2
A28: 9 | B28: 0.1191968189 | D28: 0.3 | E28: 0
A29: 10 | B29: 0.1125
A30: 11 | B30: 0.1654863872
A31: 12 | B31: 0.023
A32: 13 | B32: 0.1062664524
A33: 14 | B33: 0.09177203842
A34: 15 | B34: -0.03362536912
A35: 16 | B35: 0.012
A36: 17 | B36: 0.012
A37: 18 | B37: 0.07671165711
A38: 19 | B38: 0.242
A39: 20 | B39: 0.05121016845
A40: 21 | B40: 0.0880897281
A41: 22 | B41: 0.09589103035
A42: 23 | B42: 0.2135143162
A43: 24 | B43: 0.1478743089
A44: 25 | B44: 0.1456340024
A45: 26 | B45: 0.1094763781
A46: 27 | B46: 0.1289940508
A47: 28 | B47: 0.067786317
A48: 29 | B48: 0.1725938964
A49: 30 | B49: 0.09806451277
A50: 31 | B50: 0.1426594019
A51: 32 | B51: 0.1838513465
A52: 33 | B52: 0.1185485445
A53: 34 | B53: 0.09075862331
A54: Average Returns | B54: =AVERAGE(B20:B53) -> 0.1128064305
A55: Std Dev | B55: =_xlfn.STDEV.S(B20:B54) -> 0.05765998589

Sheet Sheet1

Sheet Mean_Std dev (2)
B1: RETURNS
B2: Microsoft | C2: Google | G2: Yearly Returns of portfolio
A3: Year 1 | B3: 0.13 | C3: 0.12 | G3: =B3*$C$14+C3*$C$15 -> 0.125
A4: Year 2 | B4: 0.13 | C4: -0.4 | G4: =B4*$C$14+C4*$C$15 -> -0.135
A5: Year 3 | B5: 0.13 | C5: 0.21 | G5: =B5*$C$14+C5*$C$15 -> 0.17
A6: Year 4 | B6: 0.13 | C6: 0.13 | G6: =B6*$C$14+C6*$C$15 -> 0.13
A7: Year 5 | B7: 0.1295 | C7: 1 | G7: =B7*$C$14+C7*$C$15 -> 0.56475
A8: Mean | B8: =AVERAGE(B3:B7) -> 0.1299 | C8: =AVERAGE(C3:C7) -> 0.212 | G8: =AVERAGE(G3:G7) -> 0.17095
A9: Std. Dev. | B9: =_xlfn.STDEV.S(B3:B7) -> 0.0002236067977 | C9: =_xlfn.STDEV.S(C3:C7) -> 0.5026629089 | G9: =_xlfn.STDEV.S(G3:G7) -> 0.251233482 | H9: Std Dev
A12: PORTFOLIO
A13: Stock | B13: Exp. Returns | C13: Fraction of wealth invested | D13: Std dev of returns | F13: Variance
A14: Microsoft | B14: =AVERAGE(B3:B7) -> 0.1299 | C14: 0.5 | D14: =_xlfn.STDEV.S(B3:B7) -> 0.0002236067977 | F14: =D14^2 -> 5e-08
A15: Google | B15: =AVERAGE(C3:C7) -> 0.212 | C15: =1-C14 -> 0.5 | D15: =_xlfn.STDEV.S(C3:C7) -> 0.5026629089 | F15: =D15^2 -> 0.25267
A18: Returns of portfolio | B18: =B14*C14+B15*C15 -> 0.17095 | C18: =B14*C14+B15*C15
A19: Variance of portfolio | B19: =F14*C14^2+F15*C15^2+2*C14*C15*A25*D14*D15 -> 0.0631182625 | C19: =F14*C14^2+F15*C15^2+2*C14*C15*A25*D14*D15
A20: Std dev of portfolio | B20: =SQRT(B19) -> 0.251233482
A22: Covariance
A23: =_xlfn.COVARIANCE.S(B3:B7,C3:C7) -> -9.85e-05
A24: Correlation | B24: Cov/std X /std Y
A25: =CORREL(B3:B7,C3:C7) -> -0.8763435371 | B25: =A23/B9/C9 -> -0.8763435371
